fUST/lending_fUST_20250101
["ID","MTS","AMOUNT","RATE_DAILY","PERIOD"]
[347315758,1735681847881,-151.0,0.00022484,7]
[347315759,1735681847890,-151.0,0.00022484,7]
[347315760,1735681847899,-151.0,0.00022484,7]
[347315761,1735681847908,-151.0,0.00022484,7]
[347315762,1735681847917,-151.0,0.00022484,7]
[347315763,1735681847927,-151.0,0.00022484,7]
[347315764,1735681847941,-186.274761,0.00022484,7]
[347315765,1735681847950,-151.0,0.00022484,7]
[347315766,1735681847959,-221.044916,0.00022484,7]
[347315767,1735681847969,-365.065258,0.00022484,7]
[347315768,1735681847979,-365.065258,0.00022484,7]
[347315769,1735681847988,-365.065258,0.00022484,7]
[347315770,1735681847997,-365.065258,0.00022484,7]
[347315771,1735681848007,-365.065258,0.00022484,7]
[347315772,1735681848016,-365.065258,0.00022484,7]
[347315773,1735681848026,-365.065258,0.00022484,7]
[347315774,1735681848035,-365.065258,0.00022484,7]
[347315775,1735681848044,-365.065258,0.00022484,7]
[347315776,1735681848053,-365.065258,0.00022484,7]
[347315777,1735681848062,-365.065258,0.00022484,7]
[347315778,1735681848071,-365.065258,0.00022484,7]
[347315779,1735681848080,-365.065258,0.00022484,7]
[347315780,1735681848090,-365.065258,0.00022484,7]
[347315781,1735681848099,-365.065258,0.00022484,7]
[347315782,1735681848108,-365.065258,0.00022484,7]
[347315783,1735681848117,-365.065258,0.00022484,7]
[347315784,1735681848127,-365.065258,0.00022484,7]
[347315785,1735681848135,-365.065258,0.00022484,7]
[347315786,1735681848145,-365.065259,0.00022484,7]
[347315787,1735681848154,-151.0,0.00022484,7]
[347315788,1735681848163,-151.0,0.00022484,7]
[347315789,1735681848173,-151.0,0.00022484,7]
[347315790,1735681848183,-151.0,0.00022484,7]
[347315791,1735681848192,-151.0,0.00022484,7]
[347315792,1735681848202,-151.0,0.00022484,7]
[347315793,1735681848211,-151.0,0.00022484,7]
[347315794,1735681848220,-151.0,0.00022484,7]
[347315795,1735681848230,-151.0,0.00022484,7]
[347315796,1735681848239,-151.0,0.00022484,7]
[347315797,1735681848248,-151.0,0.00022484,7]
[347315798,1735681848258,-151.0,0.00022484,7]
[347315799,1735681848268,-151.0,0.00022484,7]
[347315800,1735681848277,-151.0,0.00022484,7]
[347315801,1735681848287,-151.0,0.00022484,7]
[347315802,1735681848302,-151.0,0.00022484,7]
[347315803,1735681848317,-151.0,0.00022484,7]
[347315804,1735681848332,-151.0,0.00022484,7]
[347315805,1735681848344,-151.0,0.00022484,7]
[347315806,1735681848356,-151.0,0.00022484,7]
[347315807,1735681848369,-151.325348,0.00022484,7]
[347315808,1735681848383,-151.0,0.00022484,7]
[347315809,1735681848396,-151.0,0.00022484,7]
[347315810,1735681848409,-151.0,0.00022484,7]
[347315811,1735681848422,-151.0,0.00022484,7]
[347315812,1735681848437,-221.957199,0.00022484,7]
[347315813,1735681848451,-151.0,0.00022484,7]
[347315814,1735681848463,-151.0,0.00022484,7]
[347315815,1735681848475,-151.0,0.00022484,7]
[347315816,1735681848488,-151.0,0.00022484,7]
[347315817,1735681848501,-151.0,0.00022484,7]
[347315818,1735681848515,-151.0,0.00022484,7]
[347315819,1735681848526,-151.0,0.00022484,7]
[347315820,1735681848537,-151.0,0.00022484,7]
[347315821,1735681848549,-151.0,0.00022484,7]
[347315822,1735681848562,-151.0,0.00022484,7]
[347315823,1735681848576,-151.0,0.00022484,7]
[347315824,1735681848589,-151.0,0.00022484,7]
[347315825,1735681848602,-151.0,0.00022484,7]
[347315826,1735681848615,-151.0,0.00022484,7]
[347315827,1735681848629,-151.0,0.00022484,7]
[347315828,1735681848641,-151.0,0.00022484,7]
[347315829,1735681848652,-151.0,0.00022484,7]
[347315830,1735681848663,-188.011146,0.00022484,7]
[347315831,1735681848674,-151.0,0.00022484,7]
[347315832,1735681848691,-250.973167,0.00022484,7]
[347315833,1735681848704,-250.973167,0.00022484,7]
[347315834,1735681848715,-250.973167,0.00022484,7]
[347315835,1735681848727,-250.973167,0.00022484,7]
[347315836,1735681848738,-250.973167,0.00022484,7]
[347315837,1735681848751,-250.973167,0.00022484,7]
[347315838,1735681848762,-250.973167,0.00022484,7]
[347315839,1735681848772,-250.973167,0.00022484,7]
[347315840,1735681848784,-250.973167,0.00022484,7]
[347315841,1735681848795,-250.973167,0.00022484,7]
[347315842,1735681848807,-250.973167,0.00022484,7]
[347315843,1735681848821,-250.973167,0.00022484,7]
[347315844,1735681848839,-250.973167,0.00022484,7]
[347315845,1735681848850,-250.973167,0.00022484,7]
[347315846,1735681848861,-250.973167,0.00022484,7]
[347315847,1735681848873,-250.973167,0.00022484,7]
[347315848,1735681848884,-250.973167,0.00022484,7]
[347315849,1735681848896,-250.973167,0.00022484,7]
[347315850,1735681848907,-250.973167,0.00022484,7]
[347315851,1735681848920,-250.97316861,0.00022484,7]
[347315852,1735681848932,-649.792611,0.00022484,7]
[347315853,1735681848948,-649.792611,0.00022484,7]
[347315854,1735681848959,-649.792611,0.00022484,7]
[347315855,1735681848971,-649.792611,0.00022484,7]
[347315856,1735681848984,-649.792611,0.00022484,7]
[347315857,1735681848995,-649.792611,0.00022484,7]
[347315858,1735681849007,-649.792611,0.00022484,7]
[347315859,1735681849018,-649.792611,0.00022484,7]
[347315860,1735681849030,-649.792611,0.00022484,7]
[347315861,1735681849041,-649.792611,0.00022484,7]
[347315862,1735681849052,-649.792611,0.00022484,7]
[347315863,1735681849065,-649.792611,0.00022484,7]
[347315864,1735681849076,-649.792611,0.00022484,7]
[347315865,1735681849087,-649.792611,0.00022484,7]
[347315866,1735681849099,-649.792611,0.00022484,7]
[347315867,1735681849111,-649.792611,0.00022484,7]
[347315868,1735681849122,-649.792611,0.00022484,7]
[347315869,1735681849134,-649.792611,0.00022484,7]
[347315870,1735681849146,-649.792611,0.00022484,7]
[347315871,1735681849157,-649.79261441,0.00022484,7]
[347315872,1735681849168,-151.0,0.00022484,7]
[347315873,1735681849180,-184.49856,0.00022484,7]
[347315874,1735681849191,-151.0,0.00022484,7]
[347315875,1735681849201,-184.49856,0.00022484,7]
[347315876,1735681849213,-184.49856,0.00022484,7]
[347315877,1735681849224,-184.49856,0.00022484,7]
[347315878,1735681849235,-184.49856,0.00022484,7]
[347315879,1735681849246,-184.49856,0.00022484,7]
[347315880,1735681849257,-184.49856,0.00022484,7]
[347315881,1735681849268,-184.49856,0.00022484,7]
[347315882,1735681849280,-184.49856,0.00022484,7]
[347315883,1735681849291,-184.49856,0.00022484,7]
[347315884,1735681849303,-184.49856,0.00022484,7]
[347315885,1735681849314,-184.49856,0.00022484,7]
[347315886,1735681849326,-184.49856,0.00022484,7]
[347315887,1735681849337,-184.49856,0.00022484,7]
[347315888,1735681849349,-184.49856,0.00022484,7]
[347315889,1735681849360,-184.49856,0.00022484,7]
[347315890,1735681849369,-184.49856,0.00022484,7]
[347315891,1735681849379,-184.49856,0.00022484,7]
[347315892,1735681849387,-184.49856,0.00022484,7]
[347315893,1735681849397,-184.498569,0.00022484,7]
[347315894,1735681849406,-12805.71814407,0.00022485,2]
[347315895,1735681849416,-168534.98343422,0.00022485,2]
[347315896,1735681849425,-235.535079,0.00022485,7]
[347315897,1735681849436,-235.535079,0.00022485,7]
[347315898,1735681849445,-235.535079,0.00022485,7]
[347315899,1735681849454,-235.535079,0.00022485,7]
[347315900,1735681849463,-235.535079,0.00022485,7]
[347315901,1735681849472,-235.535079,0.00022485,7]
[347315902,1735681849482,-235.535079,0.00022485,7]
[347315903,1735681849638,-235.535079,0.00022485,7]
[347315904,1735681849653,-235.535079,0.00022485,7]
[347315905,1735681849664,-235.535079,0.00022485,7]
[347315906,1735681849674,-235.535079,0.00022485,7]
[347315907,1735681849684,-235.535079,0.00022485,7]
[347315908,1735681849693,-235.535079,0.00022485,7]
[347315909,1735681849702,-235.535079,0.00022485,7]
[347315910,1735681849711,-235.535079,0.00022485,7]
[347315911,1735681849720,-235.535079,0.00022485,7]
[347315912,1735681849730,-235.535079,0.00022485,7]
[347315913,1735681849739,-235.535079,0.00022485,7]
[347315914,1735681849748,-235.535079,0.00022485,7]
[347315915,1735681849757,-235.535073,0.00022485,7]
[347315916,1735681849766,-942966.69235425,0.00022485,10]
[347315917,1735681849853,-961.01068651,0.00022485,10]
[347315918,1735681849916,-205.1810474,0.00019024,2]
[347315919,1735681849926,-139.39343066,0.00022485,10]
[347315920,1735681849941,-93714.06985205,0.00022485,10]
[347315940,1735682204099,400.0,0.00013973,2]
[347315988,1735683031968,-297.51426753,0.00018059,2]
[347315990,1735683031979,-192.82506778,0.00018141,2]
[347315992,1735683031988,-300.0,0.00018241,2]
[347315994,1735683031998,-54.08566469,0.00018242,2]
[347315996,1735683032010,-495.205,0.00018242,2]
[347315999,1735683032026,-1141.000008,0.00018242,2]
[347316531,1735683042902,-26.02165028,0.00018242,2]
[347317986,1735683218895,400.0,0.00013973,2]
[347318021,1735684096781,400.0,0.00013973,2]
[347318024,1735684193202,-443.07702284,0.00016027,2]
[347318025,1735684193227,-614.078082,0.00016029,2]
[347318026,1735684193254,-347.15157707,0.00016126,2]
[347318027,1735684193283,-623.41132481,0.00016126,2]
[347318061,1735684232262,-1356.8891516,0.00015553,2]
[347318063,1735684232295,-12896.21758093,0.00015553,2]
[347318136,1735684237929,-10646.89326747,0.00015553,2]
[347318137,1735684237938,-500.0,0.00016124,2]
[347318138,1735684237947,-500.0,0.00016124,2]
[347318139,1735684237957,-500.0,0.00016124,2]
[347318140,1735684237970,-500.0,0.00016124,2]
[347318141,1735684237978,-500.0,0.00016124,2]
[347318142,1735684237988,-500.0,0.00016124,2]
[347318143,1735684237997,-158.55690373,0.00016124,2]
[347318144,1735684238006,-262.42338212,0.00016124,2]
[347318145,1735684238016,-500.0,0.00016124,2]
[347318146,1735684238025,-500.0,0.00016124,2]
[347318147,1735684238034,-200.0,0.00016124,2]
[347318148,1735684238043,-500.0,0.00016124,2]
[347318150,1735684238052,-300.59967805,0.00016124,2]
[347318152,1735684238061,-500.0,0.00016124,2]
[347318154,1735684238070,-500.0,0.00016124,2]
[347318155,1735684238079,-500.0,0.00016124,2]
[347318156,1735684238088,-500.0,0.00016124,2]
[347318158,1735684238097,-500.0,0.00016124,2]
[347318159,1735684238106,-500.0,0.00016124,2]
[347318160,1735684238115,-500.0,0.00016124,2]
[347318161,1735684238124,-500.0,0.00016124,2]
[347318162,1735684238133,-500.0,0.00016124,2]
[347318163,1735684238142,-500.0,0.00016124,2]
[347318164,1735684238151,-500.0,0.00016124,2]
[347318165,1735684238161,-500.0,0.00016124,2]
[347318166,1735684238170,-500.0,0.00016124,2]
[347318167,1735684238179,-500.0,0.00016124,2]
[347318168,1735684238188,-500.0,0.00016124,2]
[347318169,1735684238197,-250.0,0.00016124,2]
[347318170,1735684238207,-500.0,0.00016124,2]
[347318171,1735684238216,-500.0,0.00016124,2]
[347318172,1735684238225,-500.0,0.00016124,2]
[347318173,1735684238234,-500.0,0.00016124,2]
[347318174,1735684238243,-500.0,0.00016124,2]
[347318175,1735684238253,-500.0,0.00016124,2]
[347318176,1735684238262,-246.13060275,0.00016124,2]
[347318177,1735684238272,-357.83634436,0.00016124,2]
[347318178,1735684238281,-500.0,0.00016125,2]
[347318179,1735684238290,-250.99240714,0.00016125,2]
[347318180,1735684238300,-567639.0,0.00016125,2]
[347318181,1735684238309,-11835.15524219,0.00016126,2]
[347318182,1735684238318,-168534.98343422,0.00016126,2]
[347318183,1735684238327,-220.50409862,0.0001613,2]
[347318184,1735684238337,-3825.1302187,0.00016135,2]
[347318185,1735684238346,-152.0,0.00016161,2]
[347318186,1735684238355,-500.0,0.00016173,2]
[347318187,1735684238364,-192.0,0.00016524,2]
[347318188,1735684238374,-1000.0,0.00016721,2]
[347318189,1735684238383,-443.07702284,0.0001679,2]
[347318190,1735684238392,-455.2879824,0.00016809,2]
[347318191,1735684238401,-1019.9233371,0.00017,2]
[347318192,1735684238410,-151.0,0.00017024,2]
[347318193,1735684238419,-443.07702284,0.00017553,2]
[347318194,1735684238430,-166.1,0.00017572,2]
[347318195,1735684238439,-196.26215048,0.000176,2]
[347318196,1735684238448,-643.25929191,0.00017722,2]
[347318197,1735684238458,-435.99310408,0.00017959,2]
[347318198,1735684238467,-500.0,0.00018242,2]
[347318199,1735684238476,-2221.15,0.000183,2]
[347318200,1735684238485,-11200.39,0.000183,2]
[347318201,1735684238494,-5302.6,0.000183,2]
[347318202,1735684238503,-443.07702284,0.00018315,2]
[347318203,1735684238512,-249.403,0.00018479,2]
[347318204,1735684238522,-151.0,0.000187,2]
[347318205,1735684238531,-151.0,0.000188,2]
[347318206,1735684238540,-403.8543733,0.000188,2]
[347318207,1735684238550,-151.0,0.00019,2]
[347318208,1735684238559,-151.0,0.00019,2]
[347318209,1735684238568,-302.60665372,0.00019,2]
[347318210,1735684238577,-6761.23308917,0.00019,2]
[347318211,1735684238587,-6761.23308915,0.00019,2]
[347318212,1735684238595,-6761.23308915,0.00019,2]
[347318213,1735684238605,-6761.23308915,0.00019,2]
[347318214,1735684238613,-3303.60064257,0.00019,2]
[347318215,1735684238626,-3457.63244658,0.00019,2]
[347318216,1735684238635,-753.67409993,0.00019,2]
[347318986,1735684246075,-512.58237362,0.0001881,2]
[347318988,1735684246085,-3142.69829725,0.00019,2]
[347319958,1735684832468,500.0,0.00022522,60]
[347319964,1735684994694,400.0,0.00013973,2]
[347319985,1735685432466,-500.0,0.00016438,2]
[347319986,1735685432476,-500.0,0.0001726,4]
[347319987,1735685432485,-196.26215048,0.00017543,2]
[347319988,1735685432494,-300.0,0.00017642,2]
[347319989,1735685432503,-5079.18492707,0.00017643,2]
[347320054,1735685438085,-4926.85,0.00017643,2]
[347320198,1735685443459,-357.57832153,0.00017643,2]
[347321622,1735685599454,199.999999,0.00025,120]
[347321627,1735685937760,400.0,0.00013973,2]
[347321656,1735686261007,500.0,0.00022523,120]
[347321663,1735686565953,-860.47330739,0.0001583,2]
[347321664,1735686565980,-321.96202454,0.00016152,2]
[347321665,1735686566004,-37.99626017,0.00016248,2]
[347321674,1735686632729,-500.0,0.00016148,2]
[347321796,1735686638843,-105.08196903,0.00016148,2]
[347321798,1735686638852,-151.0,0.00016241,2]
[347321800,1735686638862,-300.0,0.00016247,2]
[347321802,1735686638871,-500.0,0.00016248,2]
[347321804,1735686638880,-300.0,0.00016248,2]
[347321806,1735686638889,-471.79228919,0.00016248,2]
[347321808,1735686638899,-539.75959382,0.00016248,2]
[347321810,1735686638908,-500.0,0.00016248,2]
[347321812,1735686638919,-500.0,0.00016248,2]
[347321814,1735686638928,-500.0,0.00016248,2]
[347321816,1735686638937,-0.39401069,0.00016248,2]
[347321818,1735686638948,-499.60598931,0.00016248,2]
[347321820,1735686638957,-500.0,0.00016248,2]
[347321822,1735686638967,-500.0,0.00016248,2]
[347321824,1735686638976,-500.0,0.00016248,2]
[347321826,1735686638985,-500.0,0.00016248,2]
[347321828,1735686638994,-500.0,0.00016248,2]
[347321830,1735686639003,-500.0,0.00016248,2]
[347321832,1735686639012,-500.0,0.00016248,2]
[347321834,1735686639021,-500.0,0.00016248,2]
[347321836,1735686639031,-500.0,0.00016248,2]
[347321838,1735686639040,-500.0,0.00016248,2]
[347321840,1735686639050,-500.0,0.00016248,2]
[347321842,1735686639059,-500.0,0.00016248,2]
[347321844,1735686639068,-500.0,0.00016248,2]
[347321846,1735686639078,-500.0,0.00016248,2]
[347321848,1735686639087,-500.0,0.00016248,2]
[347321850,1735686639096,-500.0,0.00016248,2]
[347321852,1735686639105,-190.63938578,0.00016248,2]
[347321962,1735686640411,-192.32012328,0.00016248,2]
[347321964,1735686640422,-277.87987672,0.00016248,2]
[347322221,1735686643396,-222.12012328,0.00016248,2]
[347322222,1735686643406,-500.0,0.00016248,2]
[347322223,1735686643415,-500.0,0.00016248,2]
[347322224,1735686643424,-500.0,0.00016248,2]
[347322225,1735686643433,-500.0,0.00016248,2]
[347322226,1735686643442,-500.0,0.00016248,2]
[347322227,1735686643451,-445.51423673,0.00016248,2]
[347322228,1735686643462,-54.48576327,0.00016248,2]
[347322229,1735686643471,-500.0,0.00016248,2]
[347322230,1735686643480,-500.0,0.00016248,2]
[347322231,1735686643489,-500.0,0.00016248,2]
[347322232,1735686643498,-500.0,0.00016248,2]
[347322233,1735686643507,-638.17016615,0.00016248,2]
[347322234,1735686643516,-500.0,0.00016248,2]
[347322235,1735686643526,-500.0,0.00016248,2]
[347322236,1735686643535,-500.0,0.00016248,2]
[347322237,1735686643544,-500.0,0.00016248,2]
[347322239,1735686643554,-306.65407308,0.00016248,2]
[347322241,1735686643694,-223.90131944,0.00016248,2]
[347322242,1735686643704,-151.58067856,0.00016248,2]
[347322256,1735686646379,-348.41932144,0.00016248,2]
[347322257,1735686646389,-500.0,0.00016248,2]
[347322258,1735686646398,-500.0,0.00016248,2]
[347322259,1735686646407,-500.0,0.00016248,2]
[347322260,1735686646417,-500.0,0.00016248,2]
[347322261,1735686646427,-500.0,0.00016248,2]
[347322262,1735686646436,-6402.85907204,0.00016248,2]
[347322263,1735686646445,-41058.14603373,0.00016248,2]
[347322264,1735686646456,-20597.43580344,0.00016248,2]
[347322265,1735686646471,-1332.82205079,0.00016248,2]
[347322291,1735686704939,202.313576,0.0002411,120]
[347322292,1735686727222,3246.91410092,0.00014995,2]
[347322293,1735686727411,3246.91410092,0.00014998,2]
[347322294,1735686727693,3246.91410092,0.00014999,2]
[347322297,1735686839143,400.0,0.00013973,2]
[347322324,1735687209982,283.35363434,0.00015,2]
[347322327,1735687457944,-300.0,0.00015433,2]
[347322328,1735687465736,-24900.0,0.00015434,2]
[347322349,1735687795471,400.0,0.00013973,2]
[347322394,1735687832834,-455.2879824,0.00015691,2]
[347322395,1735687832844,-3825.1302187,0.00016345,2]
[347322396,1735687832854,-287.241,0.00016848,2]
[347322397,1735687832863,-661.585281,0.00016946,2]
[347322398,1735687832873,-1019.9233371,0.00017,2]
[347322399,1735687832882,-500.0,0.00017642,2]
[347322400,1735687832895,-315.45097452,0.000179,2]
[347322401,1735687832904,-388.98257075,0.0001795,2]
[347322402,1735687832913,-152.0,0.00017989,2]
[347322403,1735687832923,-166.1,0.00017989,2]
[347322404,1735687832932,-300.0,0.00017998,2]
[347322405,1735687832941,-220.50409862,0.00017999,2]
[347322406,1735687832951,-320.32883434,0.00017999,2]
[347322407,1735687832960,-500.0,0.00017999,2]
[347322408,1735687832969,-500.0,0.00017999,2]
[347322409,1735687832978,-570.90779624,0.00017999,2]
[347322410,1735687832987,-614.50615473,0.00017999,2]
[347322411,1735687832997,-500.0,0.00017999,2]
[347322412,1735687833006,-525.694685,0.00017999,2]
[347322413,1735687833015,-10149.30884869,0.00018,2]
[347322414,1735687833025,-61821.91320731,0.00018,2]
[347322415,1735687833035,-144556.74132321,0.00018,4]
[347322416,1735687833047,-1272.32,0.00018,4]
[347322417,1735687833059,-6645.74625424,0.00018,4]
[347322418,1735687833071,-355.5,0.00018,4]
[347322431,1735687838630,-65.01707635,0.00018,4]
[347322476,1735687843634,-625.30836752,0.00017869,2]
[347322495,1735687843803,-595.12322458,0.00017869,2]
[347322497,1735687843812,-604.87677542,0.00018,4]
[347322499,1735687843824,-7868.75337601,0.00018,4]
[347323243,1735688902436,400.0,0.00013973,2]
[347323811,1735689037701,-330.792641,0.00016943,2]
[347323813,1735689037710,-300.0,0.00017011,2]
[347323815,1735689037719,-210.23890048,0.00017012,2]
[347323823,1735689037782,-4477.39781357,0.00017012,2]
[347323829,1735689037838,-751.89684868,0.00017012,2]
[347324030,1735689067275,97565.6215206,0.0001,2]
[347324044,1735689929567,400.0,0.00013973,2]
[347324045,1735689932589,160.0,0.00022237,120]
[347324053,1735690106639,-395.5745817,0.00016178,2]
[347324057,1735690181635,-468.04836841,0.00016016,2]
[347324058,1735690184206,-1438.55464001,0.00016016,2]
[347324082,1735690232009,-9169.45474021,0.00015919,2]
[347324112,1735690237949,-946.65000166,0.00015919,2]
[347324121,1735690238045,-14783.89525813,0.00015919,2]
[347324122,1735690238054,-368.3707866,0.00016016,2]
[347324124,1735690238063,-1510.00325122,0.00016725,2]
[347324126,1735690238073,-453.81210445,0.00016825,2]
[347324128,1735690238082,-500.0,0.00016917,2]
[347324130,1735690238091,-500.0,0.00016917,2]
[347324132,1735690238101,-262.42338212,0.00016917,2]
[347324134,1735690238110,-500.0,0.00016917,2]
[347324136,1735690238120,-500.0,0.00016917,2]
[347324138,1735690238130,-500.0,0.00016917,2]
[347324140,1735690238139,-500.0,0.00016917,2]
[347324143,1735690238150,-500.0,0.00016917,2]
[347324145,1735690238160,-500.0,0.00016917,2]
[347324147,1735690238169,-500.0,0.00016917,2]
[347324149,1735690238178,-500.0,0.00016917,2]
[347324151,1735690238188,-500.0,0.00016917,2]
[347324153,1735690238197,-300.59967805,0.00016917,2]
[347324155,1735690238207,-500.0,0.00016917,2]
[347324157,1735690238217,-500.0,0.00016917,2]
[347324159,1735690238227,-500.0,0.00016917,2]
[347324161,1735690238238,-158.55690373,0.00016917,2]
[347324162,1735690238248,-500.0,0.00016917,2]
[347324163,1735690238257,-500.0,0.00016917,2]
[347324164,1735690238266,-500.0,0.00016917,2]
[347324165,1735690238276,-500.0,0.00016917,2]
[347324166,1735690238286,-500.0,0.00016917,2]
[347324167,1735690238295,-500.0,0.00016917,2]
[347324168,1735690238306,-500.0,0.00016917,2]
[347324169,1735690238316,-525.0,0.00016917,2]
[347324170,1735690238326,-500.0,0.00016917,2]
[347324171,1735690238336,-500.0,0.00016917,2]
[347324172,1735690238345,-372.05270992,0.00016917,2]
[347324173,1735690238355,-500.0,0.00016917,2]
[347324174,1735690238364,-500.0,0.00016917,2]
[347324175,1735690238373,-430.0,0.00016917,2]
[347324176,1735690238383,-500.0,0.00016917,2]
[347324177,1735690238392,-500.0,0.00016917,2]
[347324178,1735690238401,-620.56061292,0.00016917,2]
[347324179,1735690238412,-500.0,0.00016917,2]
[347324180,1735690238422,-500.0,0.00016917,2]
[347324181,1735690238431,-500.0,0.00016917,2]
[347324182,1735690238441,-500.0,0.00016917,2]
[347324183,1735690238450,-473.02992591,0.00016917,2]
[347324184,1735690238460,-500.0,0.00016917,2]
[347324185,1735690238470,-500.0,0.00016917,2]
[347324186,1735690238480,-500.0,0.00016917,2]
[347324187,1735690238490,-500.0,0.00016917,2]
[347324188,1735690238499,-593.28400164,0.00016918,2]
[347324189,1735690238509,-300.0,0.00016918,2]
[347324190,1735690238519,-567639.0,0.00016918,2]
[347324191,1735690238529,-14466.17170177,0.00016919,2]
[347324192,1735690238538,-158288.99965071,0.00016919,2]
[347324193,1735690238547,-152.0,0.0001693,2]
[347324194,1735690238557,-165.39632,0.00016934,2]
[347324195,1735690238566,-169.592575,0.00016935,2]
[347324196,1735690238575,-169.592575,0.00016935,2]
[347324197,1735690238585,-151.0,0.00016935,2]
[347324198,1735690238594,-151.0,0.00016935,2]
[347324199,1735690238605,-151.0,0.00016935,2]
[347324200,1735690238615,-394.40039,0.00016935,2]
[347324201,1735690238625,-394.40039,0.00016935,2]
[347324202,1735690238634,-151.0,0.00016935,2]
[347324203,1735690238644,-151.0,0.00016935,2]
[347324204,1735690238653,-663.361156,0.00016935,2]
[347324205,1735690238662,-663.361156,0.00016935,2]
[347324206,1735690238671,-151.0,0.00016935,2]
[347324207,1735690238681,-264.728668,0.00016935,2]
[347324208,1735690238690,-283.051114,0.00016935,2]
[347324209,1735690238700,-264.728668,0.00016935,2]
[347324210,1735690238709,-283.051114,0.00016935,2]
[347324211,1735690238719,-160.048068,0.00016935,2]
[347324212,1735690238728,-151.0,0.00016935,2]
[347324213,1735690238739,-500.0,0.00016973,2]
[347324214,1735690238749,-2221.15,0.00017,2]
[347324215,1735690238758,-11200.39,0.00017,2]
[347324216,1735690238767,-5302.6,0.00017,2]
[347324217,1735690238777,-169.592575,0.00017,2]
[347324218,1735690238786,-169.592575,0.00017,2]
[347324219,1735690238796,-151.0,0.00017,2]
[347324220,1735690238805,-151.0,0.00017,2]
[347324221,1735690238814,-151.0,0.00017,2]
[347324222,1735690238824,-394.40039,0.00017,2]
[347324223,1735690238835,-394.40039,0.00017,2]
[347324224,1735690238845,-151.0,0.00017,2]
[347324225,1735690238854,-151.0,0.00017,2]
[347324226,1735690238863,-663.361156,0.00017,2]
[347324227,1735690238872,-663.361156,0.00017,2]
[347324228,1735690238882,-151.0,0.00017,2]
[347324229,1735690238892,-264.728668,0.00017,2]
[347324230,1735690238902,-283.051114,0.00017,2]
[347324231,1735690238911,-264.728668,0.00017,2]
[347324232,1735690238921,-283.051114,0.00017,2]
[347324233,1735690238930,-151.0,0.00017,2]
[347324234,1735690238939,-500.0,0.00017011,2]
[347324235,1735690238948,-453.81210445,0.00017094,2]
[347324236,1735690238957,-306.0,0.00017278,2]
[347324237,1735690238969,-453.81210445,0.00017363,2]
[347324238,1735690238978,-151.0,0.000174,2]
[347324239,1735690238988,-151.0,0.000175,2]
[347324240,1735690239001,-453.81210445,0.00017631,2]
[347324241,1735690239011,-151.0,0.000177,2]
[347324242,1735690239020,-352.5613876,0.00017726,2]
[347324243,1735690239030,-352.5613876,0.00017726,2]
[347324244,1735690239041,-352.5613876,0.00017726,2]
[347324245,1735690239051,-351.6104596,0.00017726,2]
[347324246,1735690239060,-151.0,0.000178,2]
[347324247,1735690239071,-1342.7357324,0.0001782,2]
[347324248,1735690239081,-151.0,0.000179,2]
[347324249,1735690239091,-453.81210445,0.000179,2]
[347324250,1735690239101,-465.59761335,0.00017957,2]
[347324251,1735690239111,-500.0,0.00017973,2]
[347324252,1735690239120,-500.0,0.00017973,2]